bitfinex-derivatives/quotes_SOLF0:USTF0_20260311
["timestamp","ask_amount","ask_price","bid_price","bid_amount"]
[1773236821619,10.454,86.078,86.011,14.07986433]
[1773236821823,14.54,86.105,86.011,14.07986433]
[1773236821824,7.85407905,86.08,86.011,14.07986433]
[1773236822327,7.85407905,86.08,86.013,10.461]
[1773236822328,10.455,86.069,86.013,10.461]
[1773236822523,7.85407905,86.08,86.011,14.07986433]
[1773236823529,10.455,86.069,86.021,10.46]
[1773236823829,7.85407905,86.08,86.011,14.07986433]
[1773236824128,7.85407905,86.08,86.02,14.05913175]
[1773236824323,14.54,86.098,86.02,14.05913175]
[1773236824925,14.54,86.099,86.02,14.05913175]
[1773236825134,14.54,86.099,86.022,14.05913175]
[1773236825626,7.85407905,86.06,85.979,14.05978981]
[1773236826134,10.462,86.009,85.957,14.05978981]
[1773236826341,7.85407905,86.0,85.911,14.05978981]
[1773236826724,7.85407905,86.0,85.931,14.05978981]
[1773236827220,7.85407905,86.0,85.905,14.54]
[1773236827221,7.85407905,85.98,85.91,14.05978981]
[1773236827522,7.85407905,86.03,85.91,14.05978981]
[1773236827523,7.85407905,86.01,85.91,14.05978981]
[1773236827721,7.85407905,86.01,85.912,14.02881412]
[1773236827919,7.85407905,86.01,85.908,2.02443281]
[1773236827920,7.85407905,86.01,85.914,14.02881412]
[1773236828120,14.54,86.03,85.914,14.02881412]
[1773236828121,7.85407905,85.99,85.914,14.02881412]
[1773236828322,7.85407905,85.99,85.926,10.472]
[1773236829326,7.85407905,86.0,85.927,14.02881412]
[1773236829534,7.85407905,86.0,85.905,14.09506284]
[1773236829728,10.464,85.995,85.93,14.09506284]
[1773236829923,7.85407905,86.03,85.93,14.09506284]
[1773236829924,7.85407905,86.01,85.93,14.09506284]
[1773236830224,14.54,86.021,85.93,14.09506284]
[1773236830524,7.85407905,86.03,85.968,10.467]
[1773236830828,7.85407905,86.03,85.968,24.56206284]
[1773236831027,10.46,86.029,85.968,24.56206284]
[1773236831230,7.85407905,86.03,85.977,10.466]
[1773236831426,7.85407905,86.05,85.978,14.10161762]
[1773236831622,10.458,86.04,85.955,14.10161762]
[1773236831823,7.85407905,86.05,85.955,14.10161762]
[1773236832037,7.85407905,86.05,85.909,162.938]
[1773236832038,7.85407905,85.99,85.929,14.10161762]
[1773236833025,10.465,85.988,85.929,14.10161762]
[1773236833221,7.85407905,85.99,85.929,14.10161762]
[1773236833724,7.85407905,85.99,85.931,10.471]
[1773236834221,14.31908237,86.097,85.904,2.02437982]
[1773236834222,10.463,85.999,85.939,14.09372409]
[1773236834734,7.85407905,86.01,85.939,14.09372409]
[1773236835821,162.673,86.049,85.875,55.507]
[1773236835822,7.85407905,85.99,85.918,14.10775171]
[1773236836023,7.85407905,85.99,85.83,163.087]
[1773236836024,7.85407905,85.99,85.88,14.10775171]
[1773236836338,10.467,85.972,85.902,10.475]
[1773236836636,10.467,85.972,85.885,14.10775171]
[1773236836831,10.468,85.961,85.9,14.10775171]
[1773236837234,7.85407905,85.97,85.9,14.10775171]
[1773236837732,7.85407905,85.99,85.9,14.10775171]
[1773236837931,7.85407905,85.99,85.925,10.472]
[1773236838328,7.85407905,85.99,85.92,14.08922651]
[1773236839334,14.31908237,86.096,85.88,7.85407905]
[1773236839335,162.596,86.09,85.941,14.08922651]
[1773236839633,7.85407905,86.05,85.943,14.08786827]
[1773236839832,7.85407905,86.05,85.964,14.08786827]
[1773236840334,7.85407905,86.06,85.964,14.08786827]
[1773236840535,14.54,86.089,85.964,14.08786827]
[1773236840729,7.85407905,86.07,85.964,14.08786827]
[1773236840935,7.85407905,86.07,85.992,14.0878107]
[1773236841137,14.54,86.089,85.992,14.0878107]
[1773236841530,14.54,86.089,85.996,10.463]
[1773236841731,14.54,86.089,85.997,14.08209753]
[1773236842134,7.85407905,86.08,85.997,14.08209753]
[1773236842331,10.456,86.057,86.003,10.464]
[1773236842536,10.456,86.057,85.997,14.08209753]
[1773236843239,10.456,86.068,85.997,14.08209753]
[1773236843638,14.54,86.086,85.997,14.08209753]
[1773236844240,14.54,86.086,86.025,10.461]
[1773236844441,14.54,86.086,86.017,14.06473966]
[1773236845137,10.455,86.075,86.017,14.06473966]
[1773236845741,7.85407905,86.1,85.951,14.05366929]
[1773236845742,7.85407905,86.06,85.951,14.05366929]
[1773236845943,7.85407905,86.02,85.951,14.05366929]
[1773236846143,7.85407905,86.0,85.911,14.05366929]
[1773236846343,10.466,85.985,85.931,10.472]
[1773236846644,7.85407905,86.0,85.911,14.05366929]
[1773236846645,7.85407905,85.98,85.911,14.05366929]
[1773236847247,7.85407905,86.03,85.881,14.05366929]
[1773236847248,7.85407905,85.96,85.881,14.05366929]
[1773236847746,7.85407905,85.98,85.899,14.07792706]
[1773236848139,7.85407905,85.98,85.91,10.475]
[1773236848341,7.85407905,85.98,85.899,14.07792706]
[1773236848544,7.85407905,85.98,85.882,14.54]
[1773236848545,10.469,85.959,85.901,14.07792706]
[1773236848845,7.85407905,85.98,85.901,14.07792706]
[1773236849443,10.468,85.971,85.912,14.0773245]
[1773236850455,7.85407905,86.0,85.923,14.0773245]
[1773236850651,22.39407905,86.02,85.923,14.0773245]
[1773236850851,7.85407905,86.02,85.923,14.0773245]
[1773236851048,7.85407905,86.04,85.955,14.0773245]
[1773236851354,14.54,86.049,85.96,7.85407905]
[1773236851550,14.54,86.049,85.911,162.95]
[1773236851551,7.85407905,86.08,85.987,14.06988302]
[1773236852150,14.54,86.09,86.009,10.463]
[1773236852352,14.54,86.094,86.009,14.06988302]
[1773236852547,7.85407905,86.08,86.009,14.06988302]
[1773236852752,14.54,86.094,86.009,14.06988302]
[1773236853149,10.458,86.047,85.991,14.54]
[1773236853350,7.85407905,86.06,85.985,14.06988302]
[1773236853755,7.85407905,86.06,85.986,14.05966868]
[1773236854152,7.85407905,86.04,85.955,14.05966868]
[1773236854853,10.462,86.018,85.957,10.469]
[1773236855050,7.85407905,86.02,85.955,14.05966868]
[1773236855555,8.44938567,86.066,85.933,14.08873177]
[1773236855556,28.40361891,86.03,85.933,14.08873177]
[1773236855757,14.54,86.029,85.933,14.08873177]
[1773236857153,14.54,86.029,85.916,14.54]
[1773236857351,28.40361891,85.99,85.909,14.08873177]
[1773236857655,28.40361891,85.99,85.93,10.473]
[1773236857656,10.465,85.99,85.93,10.473]
[1773236857859,14.54,85.996,85.909,14.08873177]
[1773236858259,14.54,85.996,85.919,10.474]
[1773236858651,10.466,85.985,85.919,10.474]
[1773236858958,14.54,85.996,85.909,14.08873177]
[1773236859956,14.54,86.013,85.911,14.07915212]
[1773236860152,14.54,86.013,85.913,14.07915212]
[1773236860358,14.54,86.013,85.948,14.07915212]
[1773236861261,14.54,86.013,85.913,14.07917292]
[1773236861661,18.94213664,86.02,85.913,14.07917292]
[1773236861857,14.56,86.019,85.926,10.473]
[1773236862162,18.94213664,86.0,85.913,14.07917292]
[1773236863358,10.467,85.974,85.915,10.474]
[1773236863659,14.56,85.977,85.915,10.474]
[1773236863861,10.468,85.966,85.913,24.55417292]
[1773236864361,10.467,85.976,85.913,24.55417292]
[1773236864763,14.56,85.977,85.913,24.55417292]
[1773236864962,14.56,85.977,85.913,14.07917292]
[1773236865357,14.56,85.977,85.915,10.474]
[1773236865558,14.56,85.977,85.913,14.07917292]
[1773236866063,14.56,85.977,85.924,10.473]
[1773236866264,14.56,85.977,85.913,14.07917292]
[1773236866457,14.56,85.977,85.924,10.473]
[1773236866958,14.56,85.977,85.913,14.07917292]
[1773236867761,10.467,85.973,85.916,10.474]
[1773236868059,162.718,86.034,85.889,14.08184411]
[1773236868060,14.56,85.972,85.889,14.08184411]
[1773236868267,14.56,85.971,85.889,14.08184411]
[1773236868466,10.472,85.936,85.889,14.08184411]
[1773236868666,14.56,85.971,85.889,14.08184411]
[1773236869367,18.94213664,85.94,85.855,14.08184411]
[1773236869557,14.56,85.939,85.855,14.08184411]
[1773236870267,10.475,85.91,85.859,10.481]
[1773236870460,10.475,85.91,85.819,14.56]
[1773236870461,14.56,85.939,85.826,14.0864639]
[1773236870661,18.94213664,85.92,85.826,14.0864639]
[1773236870857,10.479,85.882,85.826,14.0864639]
[1773236871066,14.56,85.887,85.803,14.0864639]
[1773236871271,162.913,85.932,85.803,14.0864639]
[1773236871272,18.94213664,85.88,85.803,14.0864639]
[1773236871568,162.946,85.914,85.779,14.21568032]
[1773236871569,18.94213664,85.86,85.779,14.21568032]
[1773236871776,14.56,85.859,85.779,14.21568032]
[1773236872065,18.94213664,85.86,85.779,14.21568032]
[1773236872273,14.56,85.858,85.779,14.21568032]
[1773236873172,10.485,85.828,85.779,14.21568032]
[1773236873467,14.56,85.837,85.779,14.21568032]
[1773236873670,14.56,85.837,85.742,14.19589472]
[1773236873864,10.484,85.835,85.77,14.19589472]
[1773236874066,14.56,85.837,85.77,14.19589472]
[1773236874370,10.485,85.827,85.77,14.19589472]
[1773236874672,14.56,85.837,85.748,14.19589472]
[1773236875372,18.94213664,85.86,85.75,14.19589472]
[1773236875570,7.90065549,85.85,85.75,14.19589472]
[1773236875765,10.483,85.847,85.773,14.16938494]
[1773236875963,14.56,85.849,85.773,14.16938494]
[1773236876370,10.484,85.833,85.773,14.16938494]
[1773236876565,14.56,85.849,85.773,14.16938494]
[1773236876975,14.56,85.849,85.775,10.491]
[1773236877166,14.56,85.849,85.776,14.16938494]
[1773236877364,7.90065549,85.87,85.776,14.16938494]
[1773236877572,7.90065549,85.87,85.76,7.90065549]
[1773236877573,7.90065549,85.87,85.79,14.19874546]
[1773236878174,10.482,85.853,85.79,14.19874546]
[1773236878472,14.56,85.863,85.79,14.19874546]
[1773236878869,7.90065549,85.87,85.792,14.19874546]
[1773236879073,20.947,85.925,85.792,14.19874546]
[1773236879074,14.56,85.875,85.792,14.19874546]
[1773236879270,7.90065549,85.9,85.792,14.19874546]
[1773236879572,7.90065549,85.9,85.813,14.19874546]
[1773236879976,7.90065549,85.9,85.82,14.24510652]
[1773236880274,7.90065549,85.88,85.799,14.24510652]
[1773236880473,14.56,85.879,85.799,14.24510652]
[1773236880667,7.90065549,85.9,85.799,14.24510652]
[1773236880871,7.90065549,85.9,85.811,14.24510652]
[1773236881068,7.90065549,85.92,85.834,14.24510652]
[1773236881670,14.56,85.926,85.837,14.25914064]
[1773236882176,10.475,85.914,85.857,10.482]
[1773236882372,10.475,85.914,85.83,7.90065549]
[1773236882373,14.56,85.926,85.851,14.25914064]
[1773236882979,14.56,85.926,85.866,10.48]
[1773236883179,14.56,85.926,85.85,7.90065549]
[1773236883180,14.56,85.951,85.867,14.25914064]
[1773236883376,7.90065549,85.97,85.828,20.971]
[1773236883377,14.56,85.956,85.871,14.25914064]
[1773236883577,14.56,85.956,85.902,10.476]
[1773236883773,186.24,86.007,85.903,14.24387322]
[1773236883976,14.56,85.988,85.903,14.24387322]
[1773236884176,14.56,85.989,85.903,14.24387322]
[1773236884375,7.90065549,85.99,85.903,14.24387322]
[1773236884576,10.467,85.977,85.903,24.71987322]
[1773236884778,14.56,85.992,85.911,14.24387322]
[1773236885378,7.90065549,85.99,85.911,14.24387322]
[1773236885882,10.465,85.99,85.913,14.23300049]
[1773236886281,14.56,85.992,85.913,14.23300049]
[1773236886470,14.56,85.992,85.931,14.23300049]
[1773236887377,7.90065549,85.99,85.897,14.19540171]
[1773236887683,10.466,85.983,85.914,14.19540171]
[1773236887881,14.56,85.994,85.914,14.19540171]
[1773236888282,10.467,85.975,85.915,14.19540171]
[1773236888477,7.90065549,85.99,85.915,14.19540171]
[1773236888977,14.56,85.994,85.915,14.19540171]
[1773236889183,7.90065549,85.99,85.915,14.19540171]
[1773236889782,3.97693349,86.063,85.953,3.73865308]
[1773236889987,3.97693349,86.059,85.973,3.73865308]
[1773236890382,14.43693349,86.037,85.952,10.47]
[1773236890583,11.87758898,86.03,85.952,14.20865308]
[1773236890782,11.87758898,86.03,85.952,3.73865308]
[1773236891385,3.97693349,86.058,85.975,10.467]
[1773236891582,3.97693349,86.058,85.952,3.73865308]
[1773236891784,3.97693349,86.053,85.973,10.467]
[1773236892185,3.97693349,86.053,85.974,3.73865308]
[1773236892380,3.97693349,86.053,85.994,10.465]
[1773236892581,3.97693349,86.053,85.974,3.73865308]
[1773236892582,14.56,86.059,85.974,3.73865308]
[1773236893181,14.56,86.059,86.014,10.462]
[1773236893383,14.56,86.059,85.991,3.73865308]
[1773236893786,14.56,86.059,86.008,10.463]
[1773236894186,3.97693349,86.071,86.008,10.463]
[1773236894582,14.56,86.08,86.019,10.462]
[1773236894782,14.56,86.08,86.012,3.73865308]
[1773236894982,18.53693349,86.08,86.012,3.73865308]
[1773236895183,3.97693349,86.079,86.012,3.73865308]
[1773236895693,124.0,86.13,85.965,3.73865308]
[1773236895694,3.97693349,86.059,85.965,3.73865308]
[1773236895894,3.97693349,86.057,85.965,3.73865308]
[1773236896384,3.97693349,86.036,85.965,3.73865308]
[1773236898585,3.97693349,86.036,85.965,14.20665308]
[1773236898985,3.97693349,86.036,85.965,3.73865308]
[1773236899187,3.97693349,86.031,85.954,10.47]
[1773236899393,3.97693349,86.031,85.941,3.7258158]
[1773236900095,10.46,86.03,85.966,10.468]
[1773236901194,3.97693349,86.031,85.975,10.467]
[1773236901395,7.90065549,86.04,85.963,3.71373931]
[1773236901595,3.99915622,86.053,85.963,3.71373931]
[1773236901796,3.99915622,86.053,85.993,10.465]
[1773236902189,3.99915622,86.052,85.984,3.70708343]
[1773236902784,3.99915622,86.052,85.95,7.90065549]
[1773236902785,3.99915622,86.039,85.957,3.70708343]
[1773236902989,3.99915622,86.039,85.969,10.468]
[1773236903693,3.99915622,86.019,85.918,3.68977586]
[1773236904096,3.99915622,86.019,85.947,3.68977586]
[1773236905296,3.99915622,86.019,85.959,10.469]
[1773236905693,3.99915622,86.019,85.916,3.68193947]
[1773236905893,7.90065549,85.98,85.916,3.68193947]
[1773236906094,7.90065549,85.98,85.844,163.078]
[1773236906095,3.99915622,85.979,85.871,3.68193947]
[1773236906288,7.90065549,85.96,85.902,10.476]
[1773236906501,7.90065549,85.94,85.871,3.68193947]
[1773236906999,3.99915622,85.981,85.871,3.68193947]
[1773236907293,14.56,85.997,85.891,3.68193947]
[1773236907490,10.465,85.989,85.923,10.473]
[1773236907691,14.56,85.998,85.921,3.55740756]
[1773236907894,3.99915622,86.004,85.921,3.55740756]
[1773236908095,7.90065549,86.02,85.921,3.55740756]
[1773236908299,7.90065549,86.02,85.965,10.468]
[1773236908499,3.99915622,86.028,85.965,10.468]
[1773236908694,3.99915622,86.028,85.942,3.55740756]
[1773236908901,14.56,86.03,85.951,3.55740756]
[1773236909900,3.99915622,86.026,85.97,10.468]
[1773236910291,3.99915622,86.026,85.978,10.467]
[1773236910491,3.99915622,86.026,85.951,3.55740756]
[1773236910492,14.56,86.033,85.951,3.55740756]
[1773236911102,10.461,86.025,85.973,10.467]
[1773236911608,14.56,86.033,85.951,3.55740756]
[1773236911806,3.99915622,86.049,85.961,3.7767733]
[1773236912707,3.99915622,86.049,85.93,162.913]
[1773236912708,3.99915622,86.071,85.963,3.7767733]
[1773236913007,3.99915622,86.071,85.988,3.7767733]
[1773236913601,3.99915622,86.093,86.001,3.88766939]
[1773236914200,14.56,86.103,86.023,3.88766939]
[1773236915203,14.56,86.103,86.045,10.459]
[1773236915405,14.56,86.103,86.023,3.88766939]
[1773236915808,14.44915622,86.116,86.023,3.88766939]
[1773236916007,3.99915622,86.115,86.023,3.88766939]
[1773236916211,10.452,86.103,86.033,10.46]
[1773236916413,3.99915622,86.089,86.0,3.82368708]
[1773236917100,3.99915622,86.111,86.021,3.82368708]
[1773236917309,3.99915622,86.111,85.993,162.794]
[1773236917310,3.99915622,86.111,86.031,3.82368708]
[1773236917505,14.56,86.118,86.045,3.74873052]
[1773236918011,3.99915622,86.124,86.045,3.74873052]
[1773236918416,3.99915622,86.124,86.062,10.457]
[1773236918806,3.99915622,86.124,86.045,3.74873052]
[1773236919007,3.99915622,86.137,86.051,3.74873052]
[1773236919513,10.449,86.121,86.059,10.457]
[1773236919808,3.99915622,86.119,86.031,3.81173704]
[1773236920007,10.45,86.118,86.055,10.457]
[1773236920603,3.99915622,86.119,86.054,10.457]
[1773236920814,3.85147348,86.099,86.007,3.81704929]
[1773236921009,3.85147348,86.097,86.007,3.81704929]
[1773236921415,10.456,86.064,86.007,10.463]
[1773236921911,10.456,86.064,85.984,3.86448286]
[1773236922117,3.85147348,86.039,85.958,3.86448286]
[1773236923310,10.461,86.023,85.961,10.469]
[1773236923511,3.85147348,86.039,85.931,3.88623682]
[1773236923906,3.85147348,86.039,85.97,10.468]
[1773236924116,3.85147348,86.039,85.952,3.88623682]
[1773236924313,10.462,86.016,85.952,3.88623682]
[1773236924620,3.85147348,86.019,85.93,3.88623682]
[1773236925020,10.462,86.018,85.951,10.47]
[1773236925215,10.462,86.018,85.93,3.88623682]
[1773236925818,10.463,86.008,85.95,10.47]
[1773236926014,3.85147348,86.019,85.93,3.88623682]
[1773236926218,3.85147348,86.017,85.93,3.88623682]
[1773236926421,10.466,85.987,85.93,3.88623682]
[1773236926615,10.466,85.987,85.907,3.83324573]
[1773236926821,18.41147348,86.018,85.921,3.83324573]
[1773236927120,18.41147348,86.018,85.945,3.83324573]
[1773236927420,3.85147348,86.017,85.921,3.84615722]
[1773236928119,3.85147348,86.017,85.94,10.471]
[1773236928321,3.85147348,86.017,85.921,3.84615722]
[1773236928519,10.464,85.999,85.939,10.472]
[1773236928718,3.85147348,86.017,85.921,3.84615722]
[1773236929417,10.464,86.001,85.94,10.471]
[1773236929622,3.85147348,86.001,85.921,3.84615722]
[1773236930121,14.56,86.018,85.921,3.84615722]
[1773236930122,3.94980123,85.999,85.921,3.84615722]
[1773236930720,14.41380123,85.999,85.931,10.472]
[1773236931421,14.41380123,85.999,85.941,10.471]
[1773236931718,14.56,86.018,85.921,3.84615722]
[1773236932018,10.462,86.015,85.961,10.469]
[1773236932623,14.56,86.018,85.961,10.469]
[1773236933417,10.462,86.017,85.951,10.47]
[1773236933619,10.462,86.017,85.946,3.96424429]
[1773236934020,10.462,86.017,85.953,10.47]
[1773236934221,10.463,86.008,85.953,10.47]
[1773236934620,14.41280123,86.008,85.946,3.96424429]
[1773236934819,14.56,86.018,85.94,10.471]
[1773236934820,3.94980123,86.007,85.94,10.471]
[1773236935019,10.464,86.002,85.94,10.471]
[1773236935824,10.464,86.002,85.948,10.47]
[1773236936221,3.94980123,86.007,85.925,3.968273]
[1773236936822,10.462,86.015,85.946,4.00486109]
[1773236937021,14.56,86.018,85.946,4.00486109]
[1773236937621,14.56,86.018,85.966,10.468]
[1773236938018,14.56,86.018,85.946,4.00486109]
[1773236938019,3.94980123,86.017,85.946,4.00486109]
[1773236938417,3.94980123,86.017,85.973,10.467]
[1773236938622,3.94980123,86.017,85.946,4.00486109]
[1773236938817,3.94980123,86.017,85.964,10.468]
[1773236939527,10.462,86.014,85.956,10.469]
[1773236940321,10.462,86.014,85.946,4.00486109]
[1773236940322,14.56,86.018,85.946,4.00486109]
[1773236940525,10.63357386,86.077,85.94,7.84731388]
[1773236940526,14.58,86.043,85.961,3.97142312]
[1773236940825,3.94980123,86.039,85.94,11.818737]
[1773236941024,3.94980123,86.019,85.94,3.97142312]
[1773236942625,3.94980123,86.017,85.92,3.97234479]
[1773236942831,3.94980123,85.999,85.92,3.97234479]
[1773236943532,10.468,85.967,85.922,10.474]
[1773236943723,7.84731388,85.98,85.898,3.95177594]
[1773236944029,10.47,85.955,85.911,10.475]
[1773236944225,18.52980123,85.979,85.898,3.95177594]
[1773236944226,3.94980123,85.978,85.898,3.95177594]
[1773236944824,3.94980123,85.959,85.862,3.95177594]
[1773236945030,7.84731388,85.96,85.862,3.95177594]
[1773236945031,3.94980123,85.939,85.862,3.95177594]
[1773236945230,3.94980123,85.937,85.862,3.95177594]
[1773236945636,14.58,85.938,85.862,3.95177594]
[1773236946132,14.58,85.938,85.892,10.477]
[1773236946535,14.58,85.938,85.881,3.93949169]
[1773236946735,7.84731388,85.98,85.901,3.93949169]
[1773236947029,14.58,85.98,85.901,3.93949169]
[1773236947230,3.94980123,85.979,85.901,3.93949169]
[1773236947827,10.467,85.976,85.918,10.474]
[1773236948134,3.94980123,85.979,85.901,3.93949169]
[1773236948526,10.467,85.978,85.919,10.474]
[1773236948728,3.94980123,85.979,85.901,3.93949169]
[1773236949330,14.58,85.98,85.921,3.98665429]
[1773236949536,14.58,85.98,85.877,14.58]
[1773236949537,3.94980123,85.979,85.891,3.98130734]
[1773236950139,14.58,85.98,85.818,163.126]
[1773236950140,3.94980123,85.952,85.868,3.98130734]
[1773236950331,7.84731388,85.97,85.881,3.98130734]
[1773236950527,10.469,85.963,85.904,10.476]
[1773236950738,14.58,85.98,85.901,3.98130734]
[1773236951130,20.921,86.03,85.921,3.98130734]
[1773236951131,3.94980123,86.013,85.921,3.98130734]
[1773236951438,3.94980123,86.013,85.941,3.98130734]
[1773236951837,14.58,86.017,85.968,10.468]
[1773236952241,14.58,86.017,85.941,3.98130734]
[1773236952538,14.58,86.017,85.965,10.468]
[1773236952737,3.94980123,86.016,85.941,3.98130734]
[1773236953135,3.94980123,86.016,85.92,3.98618101]
[1773236953335,14.58,86.017,85.92,3.98618101]
[1773236953336,3.94980123,86.009,85.92,3.98618101]
[1773236953732,10.465,85.99,85.939,10.471]
[1773236953933,3.94980123,86.009,85.931,3.99926305]
[1773236954334,10.464,85.999,85.938,10.472]
[1773236954938,10.465,85.99,85.934,10.472]
[1773236955138,3.94980123,86.009,85.911,3.99926305]
[1773236955438,3.94980123,86.007,85.911,3.99926305]
[1773236955630,14.58,86.008,85.911,3.99926305]
[1773236955631,10.466,85.984,85.929,10.473]
[1773236955829,3.94980123,85.986,85.911,3.99926305]
[1773236956032,3.94980123,86.007,85.911,3.99926305]
[1773236956740,3.94980123,86.007,85.937,10.472]
[1773236956741,10.465,85.996,85.937,10.472]
[1773236957133,3.94980123,86.007,85.932,3.96727101]
[1773236957531,3.94980123,85.989,85.889,3.96506032]
[1773236957735,10.47,85.951,85.896,10.477]
[1773236957936,3.94980123,85.968,85.896,10.477]
[1773236958138,3.94980123,85.968,85.889,3.96506032]
[1773236958338,3.94980123,85.968,85.912,10.475]
[1773236959442,3.94980123,85.956,85.889,3.96506032]
[1773236959936,3.71248706,85.977,85.91,10.475]
[1773236960334,3.71248706,85.977,85.889,3.96506032]
[1773236960641,3.71248706,85.977,85.908,10.475]
[1773236960842,3.71248706,85.977,85.889,3.96506032]
[1773236961443,14.58,85.988,85.901,4.03289395]
[1773236961643,3.71248706,85.996,85.921,4.03289395]
[1773236962040,10.466,85.987,85.934,10.472]
[1773236962440,3.71248706,85.996,85.921,4.03289395]
[1773236962835,3.71248706,85.996,85.941,10.471]
[1773236963538,10.466,85.984,85.93,10.473]
[1773236963936,3.71248706,85.996,85.921,4.03289395]
[1773236964142,10.465,85.993,85.937,10.472]
[1773236965044,3.71248706,85.996,85.95,10.47]
[1773236966843,10.464,86.003,85.921,4.03289395]
[1773236967246,10.463,86.012,85.921,4.03289395]
[1773236967539,10.463,86.012,85.903,34.91]
[1773236967540,3.71248706,86.035,85.953,4.03445147]
[1773236968348,3.71248706,86.035,85.99,10.465]
[1773236968850,14.58,86.042,85.998,10.464]
[1773236969041,14.58,86.067,85.991,4.03445147]
[1773236969241,3.71248706,86.066,85.991,4.03445147]
[1773236969846,10.456,86.064,86.013,10.462]
[1773236970142,3.71248706,86.066,85.991,4.03445147]
[1773236970341,14.16848706,86.066,86.014,10.462]
[1773236970547,14.58,86.074,85.991,4.03445147]
[1773236970844,14.58,86.074,86.022,10.461]
[1773236971049,3.71248706,86.087,86.001,4.03182573]
[1773236971448,14.58,86.1,86.025,4.03182573]
[1773236971848,3.71248706,86.099,86.025,4.03182573]
[1773236972046,3.71248706,86.097,86.035,10.46]
[1773236972653,3.71248706,86.097,86.004,3.98129302]
[1773236973051,10.454,86.084,86.018,10.462]
[1773236973550,3.71248706,86.084,86.018,10.462]
[1773236973742,14.58,86.107,86.007,10.463]
[1773236973743,3.71248706,86.074,86.007,10.463]
[1773236974748,3.71248706,86.074,86.017,10.462]
[1773236975148,3.71248706,86.074,86.004,3.98129302]
[1773236975349,10.459,86.046,85.983,3.90710838]
[1773236975549,3.71248706,86.055,85.983,3.90710838]
[1773236975853,3.71248706,86.055,86.004,10.464]
[1773236976053,3.71248706,86.055,85.983,3.90710838]
[1773236976454,10.459,86.045,85.983,14.37310838]
[1773236976754,3.71248706,86.044,85.983,14.37310838]
[1773236977557,3.71248706,86.044,85.992,10.465]
[1773236977762,3.71248706,86.069,85.983,3.90710838]
[1773236978263,10.458,86.051,85.983,3.90710838]
[1773236978457,3.71248706,86.069,85.983,3.90710838]
[1773236978661,3.71248706,86.069,86.003,3.90619741]
[1773236979161,10.457,86.056,86.003,3.90619741]
[1773236979953,3.72252703,86.065,86.003,3.90619741]
[1773236980961,10.455,86.074,86.003,3.90619741]
[1773236981552,14.58,86.082,86.027,10.461]
[1773236981956,7.85760783,86.1,86.023,3.89874383]
[1773236982154,10.454,86.087,86.024,10.461]
[1773236982358,3.72252703,86.099,86.025,3.89874383]
[1773236982555,14.58,86.113,86.025,3.89874383]
[1773236982759,10.453,86.088,86.026,3.89874383]
[1773236983157,10.453,86.092,86.035,14.35874383]
[1773236983559,3.72252703,86.112,86.036,3.87722248]
[1773236983761,10.452,86.102,86.036,3.87722248]
[1773236983961,3.72252703,86.112,86.036,3.87722248]
[1773236984158,14.58,86.113,86.036,3.87722248]
[1773236984358,10.452,86.103,86.046,3.87722248]
[1773236984566,14.58,86.125,86.046,3.87722248]
[1773236984764,3.72252703,86.119,86.046,3.87722248]
[1773236984966,10.454,86.087,86.024,3.87722248]
[1773236985166,3.72252703,86.1,85.991,3.87722248]
[1773236985167,3.72252703,86.099,85.991,3.87722248]
[1773236985667,3.72252703,86.08,85.991,3.87722248]
[1773236985864,11.58013486,86.1,85.991,3.87722248]
[1773236986065,3.72252703,86.099,85.991,3.87722248]
[1773236986562,3.72252703,86.099,86.017,3.67324407]
[1773236987469,3.72252703,86.099,86.036,3.61412504]
[1773236988363,7.85760783,86.12,86.047,10.458]
[1773236988364,3.72252703,86.119,86.047,10.458]
[1773236988561,3.72252703,86.119,86.036,3.61412504]
[1773236988964,3.72252703,86.119,86.047,10.458]
[1773236988965,10.453,86.096,86.047,10.458]